Cogmind - Beta 13 @@@ ROGUE MODE // 2024.04.14 @ 17:11:18 Player: NikedNOGsing_in_can't Result: Destroyed by GL-TCJ(R) with Subdweller Laser Performance ------------- Evolutions (0) 0 Regions Visited (2) 400 Robots Destroyed (30) 150 Value Destroyed (712) 712 Prototype IDs (10) 200 Alien Tech Used (0) 0 Bonus (0) 0 TOTAL SCORE: 1462 Bonus ------- None Cogmind --------- Core Integrity 0/250 Matter 143/300 Energy 180/180 System Corruption 0% Temperature Cool (6) Movement Flying (435) Ox4 Location -10/Subcaves Parts ------- > --- POWER (1) -------- Meta Core > --- PROPULSION (2) --- Light Treads Makeshift Flight Unit > --- UTILITY (2) ------ Large Storage Unit > --- WEAPON (2) ------- Subdweller Beam Cannon > --- INVENTORY (15) --- Ion Engine Light Treads Light Treads Compact Wheel Weight Redist. System Subdweller Optics Sensor Array ECM Suite Subdweller Machine Gun Battle Cannon Mining Laser Scrap Shield Fragment (48) Scrap Shield Fragment (46) Peak State ------------ > --- POWER ------------ Meta Core > --- PROPULSION ------- Light Treads Makeshift Flight Unit > --- UTILITY ---------- Large Storage Unit > --- WEAPON ----------- Subdweller Beam Cannon > --- INVENTORY -------- Ion Engine Light Treads Light Treads Compact Wheel Weight Redist. System Subdweller Optics Sensor Array ECM Suite Subdweller Machine Gun Battle Cannon Mining Laser Scrap Shield Fragment Scrap Shield Fragment [Rating: 22] Favorites ----------- Power Light Nuclear Core Engine Ion Engine Power Core Light Nuclear Core Propulsion Light Treads Treads Light Treads Leg Aluminum Leg Wheel Compact Wheel Flight Unit Flight Unit Utility Large Storage Unit Device Seismic Detector Storage Large Storage Unit Processor Targeting Computer Protection Light Armor Plating Weapon Assault Rifle Energy Gun Spread Laser Energy Cannon Subdweller Beam Cannon Ballistic Gun Assault Rifle Ballistic Cannon Light Cannon Launcher Grenade Launcher Special Weapon Mining Laser Build | -11 -10 -10 ------- Run | Yrd Mat Sub Slots Evolved . | . . . Power . | . . . Propulsion . | . . . Utility . | . . . Weapon . | . . . Parts Attached 57 | 7 30 20 Power 5 | 1 2 2 Engine 2 | 1 . 1 Core 3 | . 2 1 Reactor . | . . . Propulsion 16 | 2 10 4 Treads 8 | 2 3 3 Leg 1 | . 1 . Wheel 1 | . 1 . Hover . | . . . Flight 6 | . 5 1 Utility 16 | 2 11 3 Device 8 | 1 5 2 Storage 3 | 1 2 . Processor 1 | . 1 . Hackware . | . . . Protection 4 | . 3 1 Artifact . | . . . Weapon 20 | 2 7 11 Energy Gun 1 | . 1 . Energy Cannon 1 | . . 1 Ballistic Gun 9 | 2 4 3 Ballistic Cannon 3 | . . 3 Launcher 3 | . 2 1 Special Weapon 3 | . . 3 Impact Weapon . | . . . Slashing Weapon . | . . . Piercing Weapon . | . . . Special Melee Weapon . | . . . Unidentified Prototypes . | . . . Parts Lost 10 | . 2 8 Power 1 | . . 1 Propulsion 2 | . 1 1 Utility 4 | . 1 3 Weapon 3 | . . 3 Highest Loss Streak 4 | . 1 4 To Critical Strikes . | . . . Average Slot Usage (%) 99 | . 98 99 Engine 5 | . 3 7 Core 8 | . 10 6 Treads 26 | . 22 28 Flight 1 | . 4 . Device 11 | . 7 13 Storage 13 | . 12 14 Processor 1 | . 4 . Protection 1 | . 2 . Energy Cannon 3 | . . 5 Ballistic Gun 16 | . 27 10 Ballistic Cannon 4 | . . 7 Special Weapon 2 | . . 3 Naked Turns . | . . . Heaviest Build 36 | 12 31 36 Greatest Support 40 | 40 40 40 Greatest Overweight (x) 3 | . 3 . Average Overweight (x) . | . . . Largest Inventory Capacity 15 | 8 15 15 Average Capacity 14 | 7 14 15 Most Carried 15 | 7 14 15 Average Carried 12 | 4 10 14 Final Capacity 15 | 8 15 15 Final Carried 14 | 7 14 13 Class Distribution -------------------- 100% | Mutant Dominant Class ---------------- Mutant | -10/Materials Mutant | -10/Subcaves Resources | -11 -10 -10 ----------- Run | Yrd Mat Sub Matter Collected 1142 | 267 499 376 Remotely . | . . . Salvage Created 1038 | 174 644 220 Parts 67 | 15 35 17 Haulers Intercepted 2 | . 2 . Recyclers Shooed 1 | . 1 . Parts Field Recycled . | . . . Retrieved Matter . | . . . Parts Self-Destructed 7 | . . 7 Prevented . | . . . Kills | -11 -10 -10 ------- Run | Yrd Mat Sub Combat Hostiles Destroyed 19 | . 10 9 Guns 11 | . 9 2 Cannons 4 | . . 4 AOE 4 | . 1 3 Classes Destroyed 8 | 2 4 2 Tunneler 5 | 5 . . Hauler 2 | . 2 . Recycler 2 | 1 1 . Operator 1 | . 1 . Watcher 1 | . 1 . Swarmer 4 | . . 4 Grunt 10 | . 10 . Subdweller 5 | . . 5 Best Kill Streak 4 | 2 4 4 Combat Bots Only 4 | . 4 4 Max Kills in Single Turn 2 | 1 2 2 Gunslinging . | . . . Exploded 2 | . 1 2 Melee . | . . . Uniques/NPCs Destroyed . | . . . Combat | -11 -10 -10 -------- Run | Yrd Mat Sub Hostile Shots Fired 141 | . 61 80 Missed 46 | . 16 30 Damage Taken 1589 | . 570 1019 Core 269 | . 79 190 Absorbed by Shields . | . . . Regen/Repaired (Parts) 61 | . 61 . Core Remaining (%) 100 | 100 . . Volleys Fired 149 | 12 53 84 Largest 2 | 2 2 2 Hottest 100 | 40 65 100 Shots Fired 246 | 22 102 122 Gun 189 | 22 100 67 Cannon 32 | . . 32 Launcher 7 | . 2 5 Special 18 | . . 18 Kinetic 209 | 22 96 91 Thermal 30 | . 4 26 Explosive 7 | . 2 5 Electromagnetic . | . . . Robot Hit Streak 14 | 4 11 14 Robot Miss Streak 11 | 2 11 4 Penetration Max . | . . . Secondary Targets 2 | . 2 . Max Gunslinging Chain 1 | . 1 . Shots Hit Robots 132 | 14 60 58 Core Hits 56 | 8 32 16 Critical Kills . | . . . Critical Parts Destroyed 1 | . 1 . Critical Strikes 1 | . 1 . Destroy 1 | . 1 . Melee Attacks . | . . . Impact . | . . . Slashing . | . . . Piercing . | . . . Sneak Attacks . | . . . Combat Hostiles . | . . . Follow-up Attacks . | . . . Damage Inflicted 1892 | 150 833 909 Guns 1254 | 150 644 460 Cannons 327 | . . 327 Explosions 299 | . 177 122 Melee . | . . . Ramming 12 | . 12 . Kinetic 1471 | 150 644 677 Thermal 110 | . . 110 Explosive 299 | . 177 122 Electromagnetic . | . . . Impact . | . . . Slashing . | . . . Piercing . | . . . Highest Corruption . | . . . Average Corruption . | . . . Corruption Purged . | . . . Corruption Blocked . | . . . Overload Shots . | . . . Overflow Damage 30 | . . 30 Projectiles . | . . . Explosions 30 | . . 30 Melee . | . . . Knockbacks . | . . . Impact . | . . . Kinetic . | . . . Secondary . | . . . Self-Inflicted Damage 65 | . . 65 Shots 2 | . . 2 Rammed 1 | . 1 . Targets Rammed 1 | . 1 . Kicked . | . . . Crushed . | . . . Highest Temperature 112 | . 112 5 Average Temperature 18 | . 19 4 Received Heat Transfer 531 | . 333 198 Siege Activations . | . . . Robots Corrupted . | . . . Combat Hostiles . | . . . Parts Fried . | . . . Impact Corruptions . | . . . Robots Melted . | . . . Combat Hostiles . | . . . Parts Melted . | . . . Heat Transferred 148 | . . 148 Parts Sabotaged . | . . . Parts Stolen . | . . . Parts Stripped . | . . . Power Chain Reactions . | . . . Alert | -11 -10 -10 ------- Run | Yrd Mat Sub Peak Influence 291 | 30 291 . Initial 19 | . 19 . Average 75 | 14 85 . Maximum Alert Level 1 | . 1 . Low Security (%) 92 | 100 91 . Level 1 7 | . 8 . Level 2 . | . . . Level 3 . | . . . Level 4 . | . . . Level 5 . | . . . High Security . | . . . Max Security . | . . . Squads Dispatched 2 | . 2 . Investigation . | . . . Extermination . | . . . Reinforcement 2 | . 2 . Assault . | . . . Garrison . | . . . Intercept . | . . . Searches Triggered . | . . . Construction Impeded . | . . . Haulers Reinforced . | . . . Active Scanning Responses . | . . . Cargo Convoy Interrupts . | . . . Stealth | -11 -10 -10 --------- Run | Yrd Mat Sub Distress Signals 2 | . 2 . Communications Jammed . | . . . Distress Signals . | . . . Times Spotted 39 | . 21 18 Peak Tracking Total 5 | . 5 3 Tactical Retreats 3 | . . 3 Traps | -11 -10 -10 ------- Run | Yrd Mat Sub Traps Triggered 2 | . 2 . Indirectly . | . . . Trap Hack Attempts . | . . . Triggered . | . . . Disarmed . | . . . Reprogrammed . | . . . Reused 1 | . . 1 Traps Extracted . | . . . Installed 1 | . . 1 Triggered . | . . . Most Traps Carried 1 | . . 1 Machines | -11 -10 -10 ---------- Run | Yrd Mat Sub Machines Disabled 3 | . 1 2 Max in Single Turn 1 | . 1 1 Machines Repaired . | . . . Machines Dismantled . | . . . Machines Sabotaged . | . . . Overloaded Fab Kills . | . . . Hacking | -11 -10 -10 --------- Run | Yrd Mat Sub Machines Accessed 8 | . 7 1 Terminals 5 | . 5 . Fabricators . | . . . Repair Stations 1 | . 1 . Recycling Units 1 | . 1 . Scanalyzers . | . . . Garrison Access . | . . . Total Hacks 23 | . 14 9 Successful 18 | . 9 9 Failed 5 | . 5 . Catastrophic . | . . . Database Lockouts . | . . . Manual 7 | . 7 . Terminals 10 | . 10 . Fabricators . | . . . Repair Stations 2 | . 2 . Recycling Units 2 | . 2 . Scanalyzers . | . . . Garrison Access . | . . . Terminal Hacks 12 | . 3 9 Record 8 | . . 8 Branch Access Points 1 | . 1 . Emergency Access Points 1 | . 1 . Hauler Manifests 1 | . 1 . Derelict Proto ID Bank 1 | . . 1 Fabricator Hacks . | . . . Repair Station Hacks 2 | . 2 . Scan Component 1 | . 1 . Repair 1 | . 1 . Recycling Unit Hacks 1 | . 1 . Retrieve Components 1 | . 1 . Scanalyzer . | . . . Garrison Access Hacks . | . . . Unauthorized Hacks 3 | . 3 . Terminals 2 | . 2 . Botnet 2 | . 2 . Fabricators . | . . . Repair Stations . | . . . Recycling Units 1 | . 1 . Mask 1 | . 1 . Scanalyzers . | . . . Garrison Access . | . . . Data Cores Recovered . | . . . Used . | . . . Hacking Detections 5 | . 5 . Full Trace Events . | . . . Feedback Events . | . . . Feedback Blocked . | . . . Robot Schematics Acquired . | . . . Robots Built . | . . . Authchips . | . . . Time . | . . . Total Robot Build Rating . | . . . Part Schematics Acquired . | . . . Parts Built . | . . . Authchips . | . . . Time . | . . . Total Part Build Rating . | . . . Parts Repaired 1 | . 1 . Time 26 | . 26 . Parts Recycled . | . . . Recycled Matter . | . . . Retrieved Matter . | . . . Retrieved Components 9 | . 9 . Parts Scanalyzed . | . . . Part Schematics Acquired . | . . . Parts Damaged . | . . . Bothacking | -11 -10 -10 ------------ Run | Yrd Mat Sub Used RIF Installer . | . . . Robots Hacked . | . . . Non-combat . | . . . Combat . | . . . Robot Hacks Applied . | . . . Relay Couplers Released . | . . . Fabnet Peak Effective % . | . . . Robots Rewired . | . . . Allies Hacked . | . . . Hacks Repelled . | . . . Allies | -11 -10 -10 -------- Run | Yrd Mat Sub Total Allies . | . . . Largest Group . | . . . Highest-Rated Group . | . . . Highest-Rated Ally . | . . . Total Orders . | . . . Ally Attacks . | . . . Total Damage . | . . . Kills . | . . . Allies Corrupted . | . . . Allies Melted . | . . . Intel | -11 -10 -10 ------- Run | Yrd Mat Sub Robot Analysis Total . | . . . Derelict Logs Recovered . | . . . Drone Launches . | . . . Drone Recoveries . | . . . Exploration | -11 -10 -10 ------------- Run | Yrd Mat Sub Turns Passed 3955 | 217 1269 2469 Spaces Moved 2078 | 109 653 1316 Core 11 | 11 . . Treads 1912 | 98 498 1316 Legs . | . . . Wheels 67 | . 67 . Hover . | . . . Flight 88 | . 88 . Fastest Speed 37 | 50 37 160 Average Speed 154 | 148 145 160 Slowest Speed 277 | 160 277 160 Overloaded Moves . | . . . Propulsion Burnouts . | . . . Robots Hopped 1 | . 1 . Cave-ins Triggered . | . . . Exploration Rate (%) 51 | 5 84 65 Regions Visited 2 Branch Regions 1 Pre-discovered Areas . | . . . Known Exits Taken . | . . . Unknown Exits Taken 2 | 1 1 . Scrap Searched 3 | . . 3 Spaces Dug 1 | . . 1 Terrain Destroyed 30 | . 5 25 Melee . | . . . Projectile 3 | . . 3 AOE 27 | . 5 22 Terrain Rammed . | . . . Walls Destroyed . | . . . Machines Disabled . | . . . Actions | -11 -10 -10 --------- Run | Yrd Mat Sub Total 2541 | 144 875 1522 Wait 185 | 2 96 87 Move 2074 | 108 650 1316 Hop 1 | . 1 . Pick Up 52 | 14 30 8 Fast Attach 7 | 1 4 2 Attach 20 | 6 8 6 Detach 2 | . 2 . Swap 30 | . 18 12 Drop 19 | 1 12 6 Fire 149 | 12 53 84 Melee . | . . . Ram . | . . . Kick . | . . . Crush 1 | . 1 . Escape Stasis . | . . . Rewire . | . . . Trap 1 | . . 1 Miscellaneous . | . . . Route ------- -11/Scrapyard -10/Materials (discovered 5 exits: [*Mat x2] / *Min x2 / *Sub) -10/Subcaves (discovered 1 exit: [*Rec]) History --------- Turn | Location | Event 4 | -11/Scrapyard | Discovered new exit (range 16) 218 | -11/Scrapyard | Entered Materials 300 | -10/Materials | Build established: Mutant 741 | -10/Materials | Discovered new exit (range 5) 890 | -10/Materials | Discovered new exit (range 6) 940 | -10/Materials | Repaired Assault Rifle 1042 | -10/Materials | Identified exit to Mines 1275 | -10/Materials | Discovered new exit (range 10) 1471 | -10/Materials | Discovered new exit (range 11) 1487 | -10/Materials | Entered Subcaves 2169 | -10/Subcaves | Visited 4L-MR0's lab 2196 | -10/Subcaves | Found Meta Core 2558 | -10/Subcaves | Shifting Twisted Machinery released Battle Cannon 2593 | -10/Subcaves | Core integrity fell below 50% 2644 | -10/Subcaves | Shifting Twisted Machinery released Battle Cannon 2686 | -10/Subcaves | Discovered new exit (range 12) 2729 | -10/Subcaves | Lost 3 parts (1p1u1w) 3853 | -10/Subcaves | A swath of the cavern ceiling suddenly collapsed 3927 | -10/Subcaves | A Subdweller sparked back to life 3927 | -10/Subcaves | A Subdweller sparked back to life 3927 | -10/Subcaves | A Subdweller sparked back to life 3937 | -10/Subcaves | Core integrity fell below 20% 3956 | -10/Subcaves | Destroyed by GL-TCJ(R) with Subdweller Laser Last Messages --------------- 02946_ ML-J4G(R) destroyed. 02949_ R5-7Y6(R) destroyed. 02954_ Acquired 49 matter. 02955_ Acquired 51 matter. 02982_ Acquired Sub. Optics. 02987_ Acquired Scrap Shield Fragment. 02993_ Acquired Sub. Machine Gun. A swath of the cavern ceiling suddenly collapses. 03927_ DW-ZTD(R) creaks and sparks as it begins to move. 03927_ GL-TCJ(R) creaks and sparks as it begins to move. 03927_ 50-NUG(R) creaks and sparks as it begins to move. 03932_ Seismic Detector destroyed. 03943_ Spk. Treads destroyed. 03945_ Assault Rifle destroyed. 03949_ Tractor Beam destroyed. Map ----- +----------------------------------------------------+ | ??????????# #"""#" ## #??# ## ### ## | | ??????????# #""" ## ### #####??## | | ??????????# ###" # ### ## ####????# | | ??????????# #""" ###?## ## ## ##??? ######## | | ????????????#"" ####?## ## ##? ###???#???? | | ????????????#" ##?###### #? ##? ####